Cogmind - Beta 17.1 @@@ ROGUE MODE // 2026.09.05 @ 16:30:29 Player: LandRaider Result: Destroyed by MI-H2X(R) with Subdweller Laser Performance ------------- Evolutions (0) 0 Regions Visited (2) 400 Robots Destroyed (28) 140 Value Destroyed (470) 470 Prototype IDs (3) 60 Alien Tech Used (0) 0 Bonus (0) 0 TOTAL SCORE: 1070 Bonus ------- None Cogmind --------- Core Integrity 0/250 Matter 258/300 Energy 160/160 System Corruption 0% Temperature Cool (6) Movement Walking (260) Ox2 Location -10/Subcaves Parts ------- > --- POWER (1) -------- Light Nuclear Core > --- PROPULSION (2) --- Aluminum Leg Aluminum Leg > --- UTILITY (2) ------ High-capacity Storage Unit Improved Terrain Scanner > --- WEAPON (2) ------- Heavy Assault Rifle Heavy Assault Rifle > --- INVENTORY (20) --- Subdweller Power Source Light Treads Light Treads Subdweller Monowheel Heat Sink Large Matter Pod (150) Signal Interpreter Seismic Detector Hardened Light Armor Plating Hardened Light Armor Plating Light Cannon Grenade Launcher Grenade Launcher Subdweller Shrapnel Launcher Datajack Peak State ------------ > --- POWER ------------ Light Nuclear Core > --- PROPULSION ------- Aluminum Leg Aluminum Leg > --- UTILITY ---------- High-capacity Storage Unit Improved Terrain Scanner > --- WEAPON ----------- Heavy Assault Rifle Heavy Assault Rifle > --- INVENTORY -------- Subdweller Power Source Light Treads Light Treads Subdweller Monowheel Heat Sink Large Matter Pod Signal Interpreter Seismic Detector Hardened Light Armor Plating Hardened Light Armor Plating Light Cannon Grenade Launcher Grenade Launcher Subdweller Shrapnel Launcher Datajack [Rating: 15] Favorites ----------- Power Ion Engine Engine Ion Engine Power Core Light Nuclear Core Propulsion Light Treads Treads Light Treads Leg Aluminum Leg Utility High-capacity Storage Unit Device Seismic Detector Storage High-capacity Storage Unit Protection Hardened Light Armor Plating Weapon Medium Laser Energy Gun Medium Laser Ballistic Gun Heavy Assault Rifle Build | -11 -10 -10 ------- Run | Yrd Mat Sub Slots Evolved . | . . . Power . | . . . Propulsion . | . . . Utility . | . . . Weapon . | . . . Parts Attached 20 | 7 3 10 Power 4 | 1 1 2 Engine 3 | 1 1 1 Core 1 | . . 1 Reactor . | . . . Propulsion 4 | 2 . 2 Treads 2 | 2 . . Leg 2 | . . 2 Wheel . | . . . Hover . | . . . Flight . | . . . Utility 7 | 2 2 3 Device 4 | 1 1 2 Storage 2 | 1 1 . Processor . | . . . Hackware . | . . . Protection 1 | . . 1 Artifact . | . . . Weapon 5 | 2 . 3 Energy Gun 3 | 2 . 1 Energy Cannon . | . . . Ballistic Gun 2 | . . 2 Ballistic Cannon . | . . . Launcher . | . . . Special Weapon . | . . . Impact Weapon . | . . . Slashing Weapon . | . . . Piercing Weapon . | . . . Special Melee Weapon . | . . . Unidentified Prototypes . | . . . Parts Lost 8 | . . 8 Power 2 | . . 2 Propulsion 2 | . . 2 Utility 1 | . . 1 Weapon 3 | . . 3 Highest Loss Streak 5 | . . 5 To Critical Strikes . | . . . Average Backups 15 | 4 16 16 Power 1 | . 1 1 Propulsion 3 | 1 3 3 Utility 5 | . 5 6 Weapon 4 | 1 5 4 Tool/Special . | . . . Unused Backups 15 | . 3 12 Power 1 | . . 1 Propulsion 3 | . . 3 Utility 4 | . 1 3 Weapon 6 | . 2 4 Tool/Special 1 | . . 1 Average Slot Usage (%) 98 | . 99 95 Engine 11 | . 14 7 Core 1 | . . 4 Treads 21 | . 27 7 Leg 6 | . . 19 Device 13 | . 14 11 Storage 14 | . 14 14 Energy Gun 22 | . 28 11 Ballistic Gun 5 | . . 16 Peak Build Rating 15 | 7 9 15 Average Rating 9 | 5 8 11 On Entrance 5 | . 7 9 Avg Prop Armor Cover (%) . | . . . Naked Turns . | . . . Heaviest Build 52 | 15 50 52 Greatest Support 40 | 40 40 40 Greatest Overweight (x) 3 | 3 2 2 Average Overweight (x) 1 | . . 1 Largest Inventory Capacity 20 | 8 20 20 Average Capacity 18 | 7 19 20 Most Carried 20 | 6 20 20 Average Carried 15 | 4 16 16 Final Capacity 20 | 8 20 20 Final Carried 20 | 6 20 15 Class Distribution -------------------- 100% | Mutant Dominant Class ---------------- Mutant | -10/Materials Mutant | -10/Subcaves Resources | -11 -10 -10 ----------- Run | Yrd Mat Sub Matter Collected 573 | 270 200 103 Remotely . | . . . Salvage Created 831 | 199 511 121 Parts 52 | 16 31 5 Haulers Intercepted 2 | . 2 . Recyclers Shooed 1 | . 1 . Parts Field Recycled . | . . . Retrieved Matter . | . . . Parts Self-Destructed 1 | . . 1 Prevented 1 | . . 1 Parts Restored . | . . . Kills | -11 -10 -10 ------- Run | Yrd Mat Sub Combat Hostiles Destroyed 15 | . 12 3 Guns 14 | . 11 3 Classes Destroyed 9 | 3 4 2 Worker 4 | 2 2 . Tunneler 4 | 4 . . Hauler 2 | . 2 . Recycler 1 | 1 . . Watcher 2 | . 2 . Swarmer 6 | . 6 . Grunt 7 | . 6 1 Sentry 1 | . . 1 Subdweller 1 | . . 1 Best Kill Streak 4 | 2 4 2 Combat Bots Only 3 | . 3 2 Max Kills in Single Turn 1 | 1 1 1 Gunslinging . | . . . Exploded . | . . . Melee . | . . . Uniques/NPCs Destroyed . | . . . Combat | -11 -10 -10 -------- Run | Yrd Mat Sub Hostile Shots Fired 90 | . 48 42 Missed 16 | . 11 5 Hits 74 | . 37 37 Projectile 74 | . 37 37 AOE 7 | . . 7 Critical Strikes 1 | . . 1 Damage Taken 1192 | . 369 823 Core 258 | . 55 203 Absorbed by Shields . | . . . Core Remaining (%) 100 | 100 . . Volleys Fired 89 | 18 46 25 Largest 2 | 2 2 2 Hottest 100 | 100 100 100 Shots Fired 164 | 36 92 36 Gun 164 | 36 92 36 Cannon . | . . . Launcher . | . . . Special . | . . . Kinetic 17 | . . 17 Thermal 143 | 36 92 15 Explosive . | . . . Electromagnetic 4 | . . 4 Robot Hit Streak 14 | 4 14 13 Robot Miss Streak 4 | 3 4 3 Penetration Max . | . . . Secondary Targets . | . . . Shots Hit Robots 111 | 18 65 28 Core Hits 41 | 8 27 6 Critical Kills . | . . . Critical Parts Destroyed . | . . . Critical Strikes 9 | 1 5 3 Burn 9 | 1 5 3 Melee Attacks . | . . . Impact . | . . . Slashing . | . . . Piercing . | . . . Sneak Attacks . | . . . Combat Hostiles . | . . . Follow-up Attacks . | . . . Damage Inflicted 1506 | 226 858 422 Guns 1444 | 226 843 375 Cannons . | . . . Explosions 47 | . . 47 Melee . | . . . Ramming 15 | . 15 . Kinetic 173 | . . 173 Thermal 1281 | 226 843 212 Explosive . | . . . Electromagnetic 37 | . . 37 Impact . | . . . Slashing . | . . . Piercing . | . . . Highest Corruption . | . . . Average Corruption . | . . . Corruption Purged . | . . . Corruption Blocked . | . . . Overload Shots . | . . . Overflow Damage 21 | . . 21 Projectiles . | . . . Explosions 21 | . . 21 Melee . | . . . Knockbacks . | . . . Impact . | . . . Kinetic . | . . . Secondary . | . . . Self-Inflicted Damage 5 | . . 5 Shots 1 | . . 1 Rammed 1 | . 1 . Targets Rammed 2 | . 2 . Kicked . | . . . Crushed 1 | . 1 . Highest Temperature 270 | 156 270 8 Average Temperature 67 | 55 74 3 Received Heat Transfer 333 | . 141 192 Siege Activations . | . . . Martial Activations . | . . . Shielding Activations . | . . . Robots Disrupted . | . . . Combat Hostiles . | . . . Robots Corrupted . | . . . Combat Hostiles . | . . . Parts Fried . | . . . Impact Corruptions . | . . . Robots Melted 1 | . 1 . Combat Hostiles 1 | . 1 . Parts Melted 8 | 1 5 2 Heat Transferred 4342 | 740 2849 753 Parts Sabotaged . | . . . Parts Stolen . | . . . Parts Stripped . | . . . Power Chain Reactions 1 | . . 1 Alert | -11 -10 -10 ------- Run | Yrd Mat Sub Maximum Alert Level . | . . . Low Security (%) 100 | 100 100 . Level 1 . | . . . Level 2 . | . . . Level 3 . | . . . Level 4 . | . . . Level 5 . | . . . High Security . | . . . Max Security . | . . . Peak Influence 117 | 10 117 . Initial . | . . . Average 34 | 1 39 . Influence Increases 514 | 35 409 70 Destroy 0b10 Robot/C 280 | . 240 40 Destroy 0b10 Robot/NC 65 | 35 30 . Destroy Leader 68 | . 68 . Successful Hack 9 | . 9 . Select Force Hacks 30 | . 30 . Destroy Structure 2 | . 2 . Lose Combat Pursuer 60 | . 30 30 Influence Decreases 514 | 35 361 118 Entered New Map 24 | . . 24 Time Decay 480 | 35 361 84 Lost Part 10 | . . 10 Squads Dispatched 3 | . 3 . Investigation 1 | . 1 . Extermination . | . . . Reinforcement 2 | . 2 . Assault . | . . . Garrison . | . . . Intercept . | . . . Searches Triggered . | . . . Construction Impeded . | . . . Haulers Reinforced . | . . . Active Scanning Responses . | . . . Cargo Convoy Interrupts . | . . . Stealth | -11 -10 -10 --------- Run | Yrd Mat Sub Distress Signals . | . . . Communications Jammed . | . . . Distress Signals . | . . . Times Spotted 29 | . 22 7 Peak Tracking Total 3 | . 3 2 Tactical Retreats 3 | . 1 2 Traps | -11 -10 -10 ------- Run | Yrd Mat Sub Traps Triggered 1 | . 1 . Indirectly . | . . . Trap Hack Attempts . | . . . Triggered . | . . . Disarmed . | . . . Reprogrammed . | . . . Reused . | . . . Traps Extracted . | . . . Installed . | . . . Triggered . | . . . Machines | -11 -10 -10 ---------- Run | Yrd Mat Sub Machines Disabled . | . . . Max in Single Turn . | . . . Machines Repaired . | . . . Machines Dismantled . | . . . Machines Sabotaged . | . . . Overloaded Fab Kills . | . . . Hacking | -11 -10 -10 --------- Run | Yrd Mat Sub Machines Accessed 5 | . 5 . Terminals 3 | . 3 . Fabricators . | . . . Repair Stations . | . . . Recycling Units 2 | . 2 . Scanalyzers . | . . . Garrison Access . | . . . Total Hacks 14 | . 14 . Successful 8 | . 8 . Failed 6 | . 6 . Catastrophic 1 | . 1 . Database Lockouts . | . . . Manual 7 | . 7 . Terminals 11 | . 11 . Fabricators . | . . . Repair Stations . | . . . Recycling Units 3 | . 3 . Scanalyzers . | . . . Garrison Access . | . . . Terminal Hacks 6 | . 6 . Record 1 | . 1 . Prototype ID Bank 2 | . 2 . Emergency Access Points 1 | . 1 . Transport Status 1 | . 1 . Zone Layout 1 | . 1 . Fabricator Hacks . | . . . Repair Station Hacks . | . . . Recycling Unit Hacks . | . . . Scanalyzer . | . . . Garrison Access Hacks . | . . . Unauthorized Hacks 2 | . 2 . Terminals . | . . . Fabricators . | . . . Repair Stations . | . . . Recycling Units 2 | . 2 . Reject 1 | . 1 . Tunnel 1 | . 1 . Scanalyzers . | . . . Garrison Access . | . . . Data Cores Recovered . | . . . Used . | . . . Hacking Detections 3 | . 3 . Full Trace Events . | . . . Feedback Events . | . . . Feedback Blocked . | . . . Robot Schematics Acquired . | . . . Robots Built . | . . . Authchips . | . . . Time . | . . . Total Robot Build Rating . | . . . Part Schematics Acquired . | . . . Parts Built . | . . . Authchips . | . . . Time . | . . . Total Part Build Rating . | . . . Part Studies Acquired . | . . . Parts Repaired . | . . . Time . | . . . Parts Recycled . | . . . Recycled Matter . | . . . Retrieved Matter . | . . . Retrieved Components . | . . . Parts Scanalyzed . | . . . Part Schematics Acquired . | . . . Parts Damaged . | . . . Bothacking | -11 -10 -10 ------------ Run | Yrd Mat Sub Used RIF Installer . | . . . Robots Hacked . | . . . Non-combat . | . . . Combat . | . . . Robot Hacks Applied . | . . . Relay Couplers Released . | . . . Fabnet Peak Effective % . | . . . Robots Rewired . | . . . Allies Hacked . | . . . Hacks Repelled . | . . . Allies | -11 -10 -10 -------- Run | Yrd Mat Sub Total Allies . | . . . Largest Group . | . . . Highest-Rated Group . | . . . Highest-Rated Ally . | . . . Total Orders . | . . . Ally Attacks . | . . . Total Damage . | . . . Kills . | . . . Allies Corrupted . | . . . Allies Melted . | . . . Intel | -11 -10 -10 ------- Run | Yrd Mat Sub Active Infowar (turns) 1892 | 14 1143 735 Terrain 243 | . . 243 Structural 430 | . . 430 Seismic 1219 | 14 1143 62 Robot Analysis Total . | . . . Derelict Logs Recovered . | . . . Drone Launches . | . . . Drone Recoveries . | . . . Exploration | -11 -10 -10 ------------- Run | Yrd Mat Sub Turns Passed 2806 | 247 1684 875 Spaces Moved 1006 | 113 628 265 Core 7 | 7 . . Treads 802 | 106 628 68 Legs 197 | . . 197 Wheels . | . . . Hover . | . . . Flight . | . . . Fastest Speed 50 | 50 160 240 Average Speed 229 | 157 231 254 Slowest Speed 320 | 200 320 260 Overloaded Moves . | . . . Propulsion Burnouts . | . . . Robots Hopped . | . . . Potential Cave-ins . | . . . Cave-ins Triggered . | . . . Exploration Rate (%) 34 | 5 75 22 Regions Visited 2 Branch Regions 1 Pre-discovered Areas 1 | . 1 . Known Exits Taken . | . . . Unknown Exits Taken 2 | 1 1 . Scrap Searched . | . . . Spaces Dug . | . . . Terrain Destroyed . | . . . Melee . | . . . Projectile . | . . . AOE . | . . . Terrain Rammed . | . . . Walls Destroyed . | . . . Machines Disabled . | . . . Actions | -11 -10 -10 --------- Run | Yrd Mat Sub Total 1338 | 143 766 429 Wait 189 | . 64 125 Move 1004 | 112 627 265 Hop . | . . . Pick Up 26 | 6 17 3 Fast Attach 9 | 7 2 . Attach 8 | . . 8 Detach . | . . . Swap 6 | . 3 3 Drop 5 | . 5 . Fire 89 | 18 46 25 Melee . | . . . Ram . | . . . Kick . | . . . Crush 2 | . 2 . Escape Stasis . | . . . Rewire . | . . . Trap . | . . . Miscellaneous . | . . . Route ------- -11/Scrapyard -10/Materials (discovered 4 exits: [*Mat x2] / [*Min] / [*Sub]) -10/Subcaves History --------- Turn | Location | Event 22 | -11/Scrapyard | Discovered new exit (range 16) 248 | -11/Scrapyard | Entered Materials 312 | -10/Materials | Build established: Mutant 545 | -10/Materials | Discovered new exit (range 5) 611 | -10/Materials | Discovered new exit (range 5) 732 | -10/Materials | Discovered new exit (range 16) 1596 | -10/Materials | Discovered new exit (range 13) 1932 | -10/Materials | Entered Subcaves 2188 | -10/Subcaves | Core integrity fell below 50% 2226 | -10/Subcaves | Lost 5 parts (1p2n2w) 2301 | -10/Subcaves | A swath of the cavern ceiling suddenly collapsed 2373 | -10/Subcaves | Core integrity fell below 20% 2414 | -10/Subcaves | Lost 3 parts (1p1u1w) 2807 | -10/Subcaves | Destroyed by MI-H2X(R) with Subdweller Laser Last Messages --------------- 02212_ Acquired 1 matter. 02221_ Subatomizers dissect the Heat Sink, destroying it. 02301_ Y-45 Defender crushed by falling debris. A swath of the cavern ceiling suddenly collapses. 02346_ 37-62W(R) destroyed. 02349_ Subatomizers dissect the Sub. Monowheel. 02351_ V4-A76(R) affixes Scrap Shield Fragment to Scrap Shield. 02370_ EM Pulse Gun destroyed. 02379_ Structural Scanner destroyed. 02383_ Lgt. Ion Engine destroyed. 02387_ V4-A76(R) destroyed. 02402_ Subatomizers dissect the Sub. Monowheel. 02411_ Acquired Sub. Shrapnel Launcher. 02412_ Acquired 28 matter. 02417_ Acquired Sub. Monowheel. 02428_ Subatomizers dissect the Sub. Monowheel. 02449_ Acquired 9 matter. 02451_ Subatomizers dissect the Sub. Monowheel, destroying it. 02454_ Acquired Sub. Power Source. 02770_ 7W-V07(u) tweaks Twisted Machinery. Map ----- +----------------------------------------------------+ | ?????????????????????????????????????????????????? | | ?????????????????????????????????????????????????? | | ?????????????????????????????????????????????????? | | ?????????????????????????????????????????????????? | | ?????????????????????????????????????????????????? | | ?????????????????????????????????????????????????? | | ?????????????????????????????????????????????????? | | ?????????????????????????????????????????????????? | | ?????????????????????????????????????????????????? | | ?????????????????????????????????????????????????? | | ?????????????????????????????????????????????????? | | ?????????????????????????????????????????????????? | | ?????????????????????????????????????????????????? | | ?????????????????????#???????????????????????????? | | ?????????????????????????????????????????????????? | | ????????????????????????????"##??????????????????? | | ????????????????????????????" #??????????????????? | | ??????????????????????????#?" ???????????????????? | | ??????????????????????????"#" #####??????????????? | | ??????????????????????????# # #??????????????? | | ?????????????????????????? #???????????????? | | ?????????????????????????? #????????????????? | | ??????????????????????????# # #????????????????? | | ????????????#??#####?????##RR #????????????????? | | ????????????#### #???## ##???????????????? | | ????????????# #?##@ ##??????????????? | | ???????????#?# ## #??????????????? | | ??????????#### ##??????????????? | | ??????????# " ##???????????????? | | ??????????# """ """ ##???????????????? | | ??????????# ## ""u"""" #???????????????? | | ???????????????## ### """""""""##?????????????? | | ??????????????#?#???## """###"""##??????????????? | | ???????????????##????# ####?##?????????????????? | | ?????????????????????# ##????????#??????????????? | | ????????????????????## #???????##???????????????? | | ???????????????????## #?????? ##??????????????? | | ????????????????#??# ##?##?## #??????????????? | | ??????????????????### ###### #?#????????????? | | ????????????????????## #??????????????? | | ?????????????????????## #??#???????????? | | ?????????????? ??? ??#### #??#???????????? | | ???????????????? ???????# #??????????????? | | ???????????????????????## #####??????????????? | | ???????????????????????# ###?????????????????? | | ???????????????????#???# ##?#?????????????????? | | ??????????????? ???????# #??#?????????????????? | | ???????????????? #??### ###???????????#????????? | | ???????????????? #?# ##?????#??????????????? | | ???????????????? ??## ##????????????????????? | +----------------------------------------------------+ Best States ------------- Heat Dissipation 35 Energy Generation 14 Energy Capacity 250 Matter Stores 300 Matter Capacity 300 Sight Range 16 Terrain Scan Range 16 Terrain Scan Density 10 Armor Coverage 150 Evasion (%) 40 Recoil Reduction 2 Item Schematics ----------------- None Robot Schematics ------------------ None Fabricated ------------ Nothing Repaired ---------- Nothing Studied --------- None Alien Tech Used ----------------- None Achievements -------------- None Challenges ------------ None Game ------ Seed EmergencyRecyclingInterface Manual? 0 Play Time 00:16:25 Cumulative 141.9 hours Start 2026.09.05 @ 16:15:52 End 2026.09.05 @ 16:30:29 Sessions 1 Manual Loads 0 Difficulty Rogue Special Mode None Game No. 122 Rogue 120 Adventurer 2 Explorer 0 Win Type - Total 0 Types 0/0/0/0/0/0/0/0/0/0 Lore% 59 Gallery% 50 Achievement% 41 Wizard Run 0 Options --------- Layout 0 ASCII 0 Keyboard 0 Movement Mouse Keybinds 0 Fullscreen 2 Font 24/Smallcaps Map View 76x50 Zoom Use 0% Tactical HUD 1 Map Filters NONE Filters NONE Steam 1 RUN: 95015379-0429-4200-bb5d-7fff7f619e8d